bitfinex/quotes_ETHUSD_20250404
["timestamp","ask_amount","ask_price","bid_price","bid_amount"]
[1743754674378,6.3027947,1823.6,1823.2,5.48477]
[1743754674580,5.48397,1823.5,1823.1,12.199357]
[1743754674893,5.48397,1823.5,1823.2,1.2199357]
[1743754675239,13.45772195,1823.5,1823.2,1.2199357]
[1743754675459,5.48494,1823.2,1822.9,40.2388]
[1743754675662,5.48494,1823.2,1823.0,9.418]
[1743754675863,5.48461,1823.3,1823.0,9.418]
[1743754676059,3.0,1823.3,1823.0,14.90342]
[1743754676373,7.97391195,1823.4,1823.0,14.90337]
[1743754676584,0.0192547,1823.6,1823.2,0.7534]
[1743754676768,0.0192547,1823.6,1823.5,6.23735]
[1743754677075,0.0192547,1823.6,1823.5,15.66735]
[1743754680043,0.0192547,1823.6,1823.5,4.0]
[1743754680242,0.0192547,1823.6,1823.5,9.424]
[1743754680451,0.0192547,1823.6,1823.5,10.3664]
[1743754680676,0.0192547,1823.6,1823.5,9.424]
[1743754681557,0.0192547,1823.6,1823.5,5.424]
[1743754681760,0.8272547,1823.6,1823.5,5.424]
[1743754681945,0.0192547,1823.6,1823.5,5.424]
[1743754682769,5.5029047,1823.6,1823.5,5.424]
[1743754682969,0.0192547,1823.6,1823.5,5.424]
[1743754683176,0.0192547,1823.6,1823.5,5.9664]
[1743754684262,0.0192547,1823.6,1823.5,5.417]
[1743754686681,0.0192547,1823.6,1823.5,6.196]
[1743754687865,0.0192547,1823.6,1823.5,5.417]
[1743754693432,0.0192547,1823.6,1823.5,15.68285]
[1743754695378,0.0192547,1823.6,1823.5,55.14485]
[1743754695585,0.0192547,1823.6,1823.5,56.6956065]
[1743754696480,4.7e-06,1823.6,1823.5,56.6956065]
[1743754697012,4.7e-06,1823.6,1823.5,56.6946065]
[1743754697375,4.7e-06,1823.6,1823.5,59.7342293]
[1743754697582,0.1,1823.9,1823.5,59.7342293]
[1743754697583,4.7e-06,1823.9,1823.8,8.76887195]
[1743754697775,4.7e-06,1823.9,1823.8,14.19408215]
[1743754699592,4.7e-06,1823.9,1823.8,11.7044602]
[1743754699926,4.7e-06,1823.9,1823.8,17.1384602]
[1743754701824,4.7e-06,1823.9,1823.8,11.6604102]
[1743754702027,4.7e-06,1823.9,1823.8,4.0]
[1743754702192,5.4827547,1823.9,1823.8,9.44]
[1743754702395,6.2935547,1823.9,1823.8,9.44]
[1743754702995,0.8108047,1823.9,1823.8,9.44]
[1743754705407,4.7e-06,1823.9,1823.8,9.44]
[1743754706419,4.7e-06,1823.9,1823.8,10.932334]
[1743754706835,4.7e-06,1823.9,1823.8,16.415384]
[1743754708012,4.7e-06,1823.9,1823.8,16.410384]
[1743754709043,4.7e-06,1823.9,1823.8,4.0]
[1743754709244,4.7e-06,1823.9,1823.8,9.433]
[1743754709544,4.7e-06,1823.9,1823.8,15.67665]
[1743754710249,4.7e-06,1823.9,1823.8,10.24365]
[1743754710543,4.7e-06,1823.9,1823.8,11.68565]
[1743754710716,4.7e-06,1823.9,1823.8,14.500862]
[1743754711129,4.7e-06,1823.9,1823.8,17.50086285]
[1743754711331,0.05481,1824.5,1824.4,5.48125]
[1743754711532,0.05481,1824.5,1824.4,53.65827195]
[1743754712131,0.05481,1824.5,1824.4,51.57438419]
[1743754712332,0.05481,1824.5,1824.4,54.83988764]
[1743754713234,0.05481,1824.5,1824.4,52.35026569]
[1743754713435,0.05481,1824.5,1824.4,51.9445315]
[1743754713643,0.05481,1824.5,1824.4,55.9445315]
[1743754713847,0.05481,1824.5,1824.4,55.9475315]
[1743754714051,6.36846,1824.5,1824.4,9.456]
[1743754714759,0.05481,1824.5,1824.4,9.456]
[1743754715947,6.25313842,1824.7,1824.6,6.24115]
[1743754715948,8.42e-06,1824.7,1824.6,6.24115]
[1743754716147,8.42e-06,1824.7,1824.6,14.413348]
[1743754716455,8.42e-06,1824.9,1824.8,6.24055]
[1743754716657,8.42e-06,1824.9,1824.8,11.74155085]
[1743754717027,8.42e-06,1824.9,1824.8,15.74155085]
[1743754717228,8.42e-06,1824.9,1824.8,17.62144635]
[1743754719660,8.42e-06,1824.9,1824.8,18.17144635]
[1743754719876,0.1,1825.9,1825.4,0.1]
[1743754720029,0.55,1826.5,1826.4,5.47525]
[1743754720333,1e-05,1826.5,1826.4,51.30895]
[1743754720528,1e-05,1826.5,1826.4,56.03114885]
[1743754720753,1e-05,1826.5,1826.4,52.481148]
[1743754720964,1e-05,1826.5,1826.4,45.045]
[1743754721368,1e-05,1826.5,1826.4,50.52025]
[1743754721864,1e-05,1826.5,1826.4,45.045]
[1743754722236,1e-05,1826.5,1826.4,50.52025]
[1743754722462,1e-05,1826.5,1826.4,39.438]
[1743754722737,5.47496,1826.5,1826.4,45.167]
[1743754722954,6.569941,1826.5,1826.4,45.167]
[1743754723340,1e-05,1826.5,1826.4,45.167]
[1743754723770,5.47496,1826.5,1826.4,45.167]
[1743754723949,1e-05,1826.5,1826.4,45.167]
[1743754724879,5.47496,1826.5,1826.4,45.167]
[1743754725074,1e-05,1826.5,1826.4,45.167]
[1743754725845,1e-05,1826.5,1826.4,50.64225]
[1743754727582,0.11267512,1826.5,1826.4,50.64225]
[1743754727754,1e-05,1826.5,1826.4,50.64225]
[1743754727955,1e-05,1826.5,1826.4,45.167]
[1743754728155,0.11267512,1826.5,1826.4,50.64225]
[1743754728576,1e-05,1826.5,1826.4,50.64225]
[1743754729650,1e-05,1826.5,1826.4,45.169]
[1743754729850,0.1125382,1826.5,1826.4,39.438]
[1743754730052,5.47496,1826.5,1826.4,39.438]
[1743754730253,11.42063931,1826.5,1826.4,39.438]
[1743754730453,13.18562224,1826.5,1826.4,45.172]
[1743754731078,3.11262378,1826.5,1826.4,45.172]
[1743754731479,0.11262378,1826.5,1826.4,50.64725]
[1743754731874,1e-05,1826.5,1826.4,50.64725]
[1743754732257,0.12272877,1826.5,1826.4,50.64725]
[1743754732483,1e-05,1826.5,1826.4,50.64725]
[1743754732687,0.12272877,1826.5,1826.4,50.64725]
[1743754732855,1e-05,1826.5,1826.4,50.64725]
[1743754733056,0.12272877,1826.5,1826.4,50.64725]
[1743754733256,1e-05,1826.5,1826.4,50.64725]
[1743754733485,0.12272877,1826.5,1826.4,50.64725]
[1743754733667,1e-05,1826.5,1826.4,50.64725]
[1743754733866,0.12272877,1826.5,1826.4,50.64725]
[1743754734078,1e-05,1826.5,1826.4,50.64725]
[1743754734277,0.12272877,1826.5,1826.4,50.64725]
[1743754734584,0.12272877,1826.5,1826.4,53.6883435]
[1743754734753,0.12272877,1826.5,1826.4,50.64725]
[1743754735378,1e-05,1826.5,1826.4,50.64725]
[1743754735784,0.1229348,1826.5,1826.4,50.64725]
[1743754735960,1e-05,1826.5,1826.4,50.64725]
[1743754736160,0.1229348,1826.5,1826.4,45.17]
[1743754736707,5.47496,1826.5,1826.4,39.438]
[1743754737008,6.41084961,1826.5,1826.4,45.175]
[1743754737161,6.41084961,1826.5,1826.4,39.438]
[1743754737360,6.41084961,1826.5,1826.4,45.176]
[1743754737804,0.93589961,1826.5,1826.4,45.176]
[1743754738901,6.41084961,1826.5,1826.4,45.176]
[1743754739101,6.41084961,1826.5,1826.4,39.438]
[1743754739307,6.41084961,1826.5,1826.4,45.163]
[1743754739477,6.28776,1826.5,1826.4,45.163]
[1743754739676,0.81281,1826.5,1826.4,45.163]
[1743754740613,1e-05,1826.5,1826.4,45.163]
[1743754740988,1e-05,1826.5,1826.4,50.63825]
[1743754741388,1e-05,1826.5,1826.4,51.44015]
[1743754742787,1e-05,1826.5,1826.4,45.71515]
[1743754742992,1e-05,1826.5,1826.4,50.65025]
[1743754743594,1e-05,1826.5,1826.4,39.438]
[1743754743793,0.12369711,1826.5,1826.4,45.178]
[1743754743996,0.12369711,1826.5,1826.4,45.177]
[1743754743997,5.59864711,1826.5,1826.4,45.177]
[1743754744421,5.59864711,1826.5,1826.4,39.438]
[1743754744826,5.59864711,1826.5,1826.4,45.177]
[1743754745483,5.59864711,1826.5,1826.4,39.438]
[1743754745683,6.36354711,1826.5,1826.4,45.171]
[1743754746131,6.36354711,1826.5,1826.4,39.438]
[1743754746284,0.12369711,1826.5,1826.4,45.194]
[1743754746491,5.59864711,1826.5,1826.4,45.194]
[1743754746827,0.12369711,1826.5,1826.4,45.194]
[1743754746998,5.59864711,1826.5,1826.4,45.194]
[1743754747523,0.12369711,1826.5,1826.4,45.194]
[1743754747693,5.59864711,1826.5,1826.4,45.194]
[1743754748238,5.47664,1826.0,1825.8,0.8249]
[1743754748384,0.7716,1826.1,1825.9,5.765]
[1743754748580,6.24785,1826.1,1825.9,5.765]
[1743754749008,0.7716,1826.1,1825.9,5.765]
[1743754749219,6.24785,1826.1,1826.0,5.76]
[1743754749600,5.4765,1826.0,1825.6,44.87554]
[1743754749922,0.7529,1826.4,1825.9,5.4766]
[1743754750124,1e-05,1826.5,1825.9,5.47675]
[1743754750417,1e-05,1826.5,1826.4,6.77865]
[1743754750616,1e-05,1826.5,1826.4,12.57465085]
[1743754750818,1e-05,1826.5,1826.4,14.37719993]
[1743754751326,1e-05,1826.5,1826.4,3.10594908]
[1743754751523,5.47497,1826.5,1826.4,5.799]
[1743754752098,8.47497,1826.5,1826.4,5.799]
[1743754752431,9.26067,1826.5,1826.4,5.799]
[1743754752730,1e-05,1826.5,1826.4,12.04005]
[1743754752896,0.0008,1826.8,1826.7,6.24015]
[1743754753097,0.0111741,1827.2,1827.1,5.47315]
[1743754753424,4.1e-06,1827.2,1827.1,12.10735]
[1743754753644,0.16814617,1828.0,1827.8,6.22425]
[1743754753799,0.16814617,1828.0,1827.9,44.86975]
[1743754753998,0.16814617,1828.0,1827.9,50.78175]
[1743754754200,0.015,1828.7,1828.0,6.27615]
[1743754754407,0.015,1828.7,1828.6,6.27436]
[1743754754606,0.015,1828.7,1828.6,6.7737]
[1743754754812,0.015,1828.7,1827.6,3.19491152]
[1743754754813,5.46881,1828.6,1828.4,5.976]
[1743754755108,0.11399659,1828.5,1828.4,5.976]
[1743754755298,5.58295659,1828.5,1828.4,5.976]
[1743754755627,5.46957,1828.3,1828.1,5.989]
[1743754755836,0.1122308,1828.2,1827.9,39.399]
[1743754756036,5.5822808,1828.2,1828.0,5.99]
[1743754756326,5.47016,1828.1,1828.0,5.99]
[1743754756505,7.50166588,1828.2,1828.0,5.99]
[1743754756829,0.11164207,1828.1,1828.0,11.46045]
[1743754757016,0.7838,1828.7,1828.1,5.47004]
[1743754757216,0.11458506,1828.6,1828.1,5.47004]
[1743754757418,0.11458506,1828.6,1828.2,0.547004]
[1743754757619,5.46872,1828.6,1828.2,0.547004]
[1743754757820,0.11765194,1828.5,1828.0,11.46045]
[1743754758130,5.46926,1828.4,1828.0,5.99]
[1743754758337,5.46926,1828.4,1827.9,40.1715]
[1743754758338,5.46989,1828.2,1827.9,40.1715]
[1743754758513,5.46989,1828.2,1828.1,6.023]
[1743754758714,5.46958,1828.3,1828.1,6.023]
[1743754759201,10.93937,1828.3,1828.1,6.023]
[1743754759604,5.46986,1828.2,1828.1,6.023]
[1743754760232,5.47045,1828.0,1827.9,39.399]
[1743754760731,5.47045,1828.0,1827.9,45.418]
[1743754760947,6.646612,1828.0,1827.9,45.418]
[1743754761315,6.646612,1828.0,1827.9,39.399]
[1743754761508,6.646612,1828.0,1827.9,45.412]
[1743754761832,9.646612,1828.0,1827.9,45.412]
[1743754762000,5.47135,1827.7,1827.6,2.42025976]
[1743754762199,5.47135,1827.7,1827.6,8.43225976]
[1743754763133,5.47135,1827.7,1827.3,6.008]
[1743754763134,5.47226,1827.4,1827.3,6.008]
[1743754763532,5.47255,1827.3,1827.2,39.376]
[1743754763706,5.47255,1827.3,1827.2,45.383]
[1743754765140,5.47255,1827.3,1827.2,45.371]
[1743754766115,5.47226,1827.4,1827.2,45.371]
[1743754766328,5.47255,1827.3,1827.2,45.371]
[1743754766532,5.47255,1827.3,1827.2,45.361]
[1743754768511,5.47255,1827.3,1827.2,45.347]
[1743754768822,5.47109,1827.8,1827.2,46.1175]
[1743754769006,11.71249,1827.9,1827.5,5.47184]
[1743754769206,5.47016,1828.1,1827.6,5.979]
[1743754769414,5.46988,1828.2,1827.8,6.23815]
[1743754769617,5.46988,1828.2,1827.8,0.7672]
[1743754769915,5.47018,1828.1,1827.8,1.989151]
[1743754770112,5.46988,1828.2,1827.8,7.460091]
[1743754770313,5.46988,1828.2,1827.9,5.47074]
[1743754770544,5.46958,1828.3,1827.9,5.47062]
[1743754771041,5.47017,1828.1,1827.8,1.221951]
[1743754771611,5.47017,1828.1,1827.8,6.692991]
[1743754771833,5.47017,1828.1,1827.8,1.221951]
[1743754772036,5.47017,1828.1,1827.9,5.974]
[1743754772439,5.47099,1827.9,1827.5,8.5e-07]
[1743754772743,5.47099,1827.9,1827.6,5.972]
[1743754773045,5.47099,1827.9,1827.5,5.47194085]
[1743754773213,5.47099,1827.9,1827.7,5.971]
[1743754773410,5.47099,1827.9,1827.7,6.5681]
[1743754773615,10.94116,1828.0,1827.7,6.5681]
[1743754773925,5.47087,1827.9,1827.7,6.5681]
[1743754774540,5.47078,1827.9,1827.7,0.5971]
[1743754774737,5.47078,1827.9,1827.8,5.96]
[1743754777047,5.47125,1827.8,1827.4,5.4722]
[1743754777213,5.47125,1827.8,1827.5,5.939]
[1743754777416,5.47123,1827.8,1827.5,5.939]
[1743754777613,5.47123,1827.8,1827.4,10.94432]
[1743754777822,10.94173,1827.9,1827.6,5.934]
[1743754778047,5.47116,1827.8,1827.6,5.934]
[1743754778413,10.94173,1827.9,1827.6,5.934]
[1743754778615,5.47078,1827.9,1827.6,5.934]
[1743754778811,5.47078,1827.9,1827.6,7.1840272]
[1743754779016,5.47081,1827.9,1827.6,7.1840272]
[1743754779216,5.47081,1827.9,1827.7,5.923]
[1743754780019,5.47049,1828.0,1827.7,9.923]
[1743754780238,0.015,1828.7,1828.6,5.46866]
[1743754780413,0.015,1828.7,1828.6,11.43566]
[1743754780611,0.1,1828.9,1828.8,5.46806]
[1743754780818,0.03765849,1829.0,1828.9,6.22406]
[1743754781060,0.03765849,1829.0,1828.9,10.22406]
[1743754781334,8.49e-06,1829.0,1828.9,11.5728263]
[1743754781551,0.1,1829.9,1828.9,11.5728263]
[1743754781725,0.1,1829.9,1829.8,6.24347]
[1743754781927,0.1,1829.9,1829.8,39.367]
[1743754782117,0.23115965,1829.9,1829.4,0.7784]
[1743754782317,0.285051,1831.2,1829.9,0.55]
[1743754782626,0.1,1832.9,1830.2,5.4637]
[1743754782627,5.46225,1830.8,1830.2,5.4637]
[1743754782836,3.01601268,1831.1,1830.2,5.4637]
[1743754782837,5.46287,1830.6,1830.2,0.54637]
[1743754783036,5.46373,1830.3,1830.0,6.718]
[1743754783224,5.46356,1830.4,1830.1,4.0]
[1743754783429,5.46239,1830.7,1830.1,10.725]
[1743754783616,5.46383,1830.3,1830.1,10.725]
[1743754783812,5.46388,1830.2,1830.1,10.725]
[1743754784012,6.556651,1830.2,1830.1,10.725]
[1743754784213,13.37836368,1830.2,1830.1,10.725]
[1743754784517,13.37836368,1830.2,1830.1,3.3296875]
[1743754785139,5.46481,1829.9,1829.7,6.719]
[1743754785319,5.46507,1829.8,1829.7,6.719]
[1743754785647,5.46507,1829.8,1829.7,10.719]
[1743754785951,10.92987,1829.9,1829.7,10.719]
[1743754786247,8.46403,1830.2,1829.7,11.9690272]
[1743754786453,8.46403,1830.2,1829.7,17.4342372]
[1743754786824,5.46345,1830.4,1829.8,5.46503]
[1743754787023,5.4638,1830.3,1829.9,0.546503]
[1743754787224,5.46408,1830.2,1829.7,17.4341172]
[1743754787854,5.4638,1830.3,1829.8,5.46507]
[1743754788021,5.4638,1830.3,1829.9,4.0]
[1743754788221,5.4639,1830.2,1829.9,4.0]
[1743754788418,5.46328,1830.4,1829.7,6.719]
[1743754788737,5.46507,1829.8,1829.7,6.719]
[1743754788972,5.46537,1829.7,1829.6,39.367]
[1743754789155,5.46537,1829.7,1829.6,46.055]
[1743754789355,5.46448,1830.0,1829.6,46.055]
[1743754789356,5.46475,1830.0,1829.6,46.055]
[1743754789566,5.46422,1830.1,1829.6,51.52065]
[1743754789769,5.46405,1830.2,1829.7,5.46517]
[1743754790079,5.46454,1830.0,1829.6,46.055]
[1743754790260,5.46484,1829.9,1829.6,46.055]
[1743754790461,5.46484,1829.9,1829.7,6.702]
[1743754791182,5.46507,1829.8,1829.7,6.702]
[1743754791481,5.465,1829.9,1829.7,10.702]
[1743754791681,5.46507,1829.8,1829.7,10.702]
[1743754792176,5.46507,1829.8,1829.7,10.718]
[1743754792377,5.46537,1829.7,1829.6,39.367]
[1743754792679,5.46537,1829.7,1829.6,43.367]
[1743754792857,5.46537,1829.7,1829.6,50.078]
[1743754793863,5.46537,1829.7,1829.6,39.367]
[1743754794069,5.46537,1829.7,1829.6,46.063]
[1743754794685,5.46537,1829.7,1829.6,39.367]
[1743754794892,6.558414,1829.7,1829.6,46.055]
[1743754795071,9.558414,1829.7,1829.6,46.055]
[1743754795593,9.558414,1829.7,1829.6,39.367]
[1743754795887,5.46687,1829.2,1829.1,0.1]
[1743754796095,5.46687,1829.2,1829.1,10.773]
[1743754796662,6.22587,1829.2,1829.1,10.773]
[1743754796861,7.395125,1829.2,1829.1,6.773]
[1743754797155,10.395125,1829.2,1829.1,6.773]
[1743754798270,5.46687,1829.2,1829.1,6.773]
[1743754798594,5.46608,1829.5,1829.1,6.773]
[1743754798890,5.46673,1829.3,1829.1,10.773]
[1743754799109,5.46645,1829.4,1829.1,10.773]
[1743754799699,5.46687,1829.2,1829.1,10.773]
[1743754799862,5.46659,1829.3,1829.1,11.8503]
[1743754800202,5.46636,1829.4,1829.1,11.8503]
[1743754800203,10.93286,1829.4,1829.1,11.8503]
[1743754800372,5.46636,1829.4,1829.1,11.8503]
[1743754800582,5.46667,1829.3,1829.1,11.8503]
[1743754800779,5.46687,1829.2,1829.1,10.773]
[1743754800991,3.0,1829.7,1829.1,10.773]
[1743754800992,0.7761,1829.8,1829.1,10.773]
[1743754801204,5.46509,1829.8,1829.3,5.46635]
[1743754801413,5.46509,1829.8,1829.4,5.4661]
[1743754801414,10.93042,1829.8,1829.4,5.4661]
[1743754801640,5.46509,1829.8,1829.4,5.4661]
[1743754801908,6.23151,1830.1,1829.5,5.46596]
[1743754801909,5.46458,1830.0,1829.5,5.46596]
[1743754802070,5.46352,1830.4,1830.0,5.46428]
[1743754802268,5.46388,1830.2,1830.1,6.622]
[1743754802584,5.46477,1829.9,1829.8,39.337]
[1743754802981,5.46419,1830.1,1829.8,45.959]
[1743754803205,5.46399,1830.2,1829.8,45.959]
[1743754803406,5.46399,1830.2,1829.8,55.4239]
[1743754803908,5.46422,1830.1,1829.8,55.4239]
[1743754804106,5.46399,1830.2,1829.8,55.4239]
[1743754804294,5.46449,1830.0,1829.8,49.959]
[1743754804477,5.46418,1830.1,1829.8,49.959]
[1743754804675,5.46389,1830.2,1829.9,6.608]
[1743754804897,5.46362,1830.3,1829.9,10.608]
[1743754805109,5.4639,1830.2,1829.9,10.608]
[1743754805509,5.46425,1830.1,1829.9,10.608]
[1743754805711,5.46395,1830.2,1829.9,10.608]
[1743754805907,5.46348,1830.4,1830.0,6.21729]
[1743754806106,5.46348,1830.4,1830.0,10.21729]
[1743754806509,5.46332,1830.4,1830.0,10.21738]
[1743754806696,6.28735,1830.9,1830.0,4.753]
[1743754806898,0.8254,1831.2,1830.8,5.46192]
[1743754807213,0.8254,1831.2,1830.9,6.589]
[1743754807214,5.46149,1831.0,1830.9,6.589]
[1743754807517,5.46122,1831.1,1830.9,6.589]
[1743754807735,0.01277707,1831.4,1831.1,5.46099]
[1743754807900,5.47319707,1831.4,1831.1,0.8197]
[1743754808097,0.01277707,1831.4,1831.2,5.46079]
[1743754808284,0.01277707,1831.4,1831.3,5.4606]
[1743754808613,0.01277707,1831.4,1831.3,6.605]
[1743754808779,7.07e-06,1831.6,1831.5,5.46]
[1743754808983,0.1,1831.9,1831.7,5.4593]
[1743754809178,5.5559,1832.9,1831.9,6.27191]
[1743754809388,5.45627,1832.8,1831.9,6.27191]
[1743754809801,5.45747,1832.4,1831.9,10.27191]
[1743754810002,5.66351,1832.0,1831.9,4.8131]
[1743754810310,0.205,1832.0,1831.9,11.5631]
[1743754810511,0.205,1832.0,1831.9,13.4300945]
[1743754810883,0.205,1832.0,1831.9,4.0]
[1743754810884,5.66351,1832.0,1831.9,4.0]
[1743754811086,5.66351,1832.0,1831.9,10.741]
[1743754811479,5.46066,1831.3,1831.1,40.0825]
[1743754811701,5.46066,1831.3,1831.1,0.7735]
[1743754811914,5.46066,1831.3,1831.2,6.747]
[1743754812094,5.45911,1831.8,1831.3,5.46042]
[1743754812290,5.45963,1831.7,1831.3,5.46057]
[1743754812490,5.45894,1831.9,1831.4,5.46012]
[1743754812706,5.45894,1831.9,1831.3,5.46057]
[1743754812707,5.45926,1831.8,1831.3,5.46057]
[1743754812914,5.45926,1831.8,1831.2,12.95994]
[1743754812915,0.205,1832.0,1831.6,5.4597]
[1743754813218,0.205,1832.0,1831.7,6.782]
[1743754813219,5.45894,1831.9,1831.7,6.782]
[1743754813380,0.205,1832.0,1831.7,12.24117]
[1743754814002,0.205,1832.0,1831.8,5.45898]
[1743754814204,0.205,1832.0,1831.9,44.75881]
[1743754814610,0.205,1832.0,1831.9,48.75381]
[1743754814813,0.205,1832.0,1831.9,43.295]
[1743754815016,5.66351,1832.0,1831.9,43.295]
[1743754815684,8.66351,1832.0,1831.9,43.295]
[1743754815896,3.0,1831.8,1831.4,6.77]
[1743754816217,5.46,1831.5,1831.4,6.77]
[1743754816840,5.46089,1831.2,1831.1,39.3]
[1743754817536,5.46061,1831.3,1831.1,39.3]
[1743754817693,5.46037,1831.4,1831.1,39.3]
[1743754817887,10.92088,1831.4,1831.1,39.3]
[1743754818113,5.4602,1831.5,1831.1,44.76107]
[1743754818293,5.46083,1831.3,1831.1,39.3]
[1743754818491,5.46089,1831.2,1831.1,39.3]
[1743754818818,5.46051,1831.4,1831.1,46.095]
[1743754818992,5.4604,1831.4,1831.1,46.095]
[1743754819321,5.46031,1831.4,1831.1,50.095]
[1743754819486,5.45941,1831.7,1831.3,5.46047]
[1743754819683,5.45941,1831.7,1831.3,10.92087]
[1743754820015,5.46019,1831.5,1831.3,1.169837]
[1743754820195,5.45941,1831.7,1831.2,0.7775]
[1743754820404,5.4603,1831.4,1831.3,10.824]
[1743754820918,5.4603,1831.4,1831.3,4.0]
[1743754821089,5.4603,1831.4,1831.3,10.817]
[1743754821694,5.46011,1831.5,1831.3,10.817]
[1743754821902,5.4603,1831.4,1831.3,4.0]
[1743754822306,6.552341,1831.4,1831.3,6.804]
[1743754823320,6.25081,1831.5,1831.3,6.804]
[1743754823520,5.46011,1831.5,1831.3,6.804]
[1743754823897,5.4603,1831.4,1831.3,6.804]
[1743754824304,5.46089,1831.2,1831.1,46.082]
[1743754824618,5.46089,1831.2,1831.1,50.082]
[1743754825207,10.92157,1831.3,1831.1,46.082]
[1743754825395,5.45942,1831.7,1831.1,46.082]
[1743754825618,5.46005,1831.5,1831.1,46.082]
[1743754825822,0.7779,1832.1,1831.1,46.8562]
[1743754826000,0.7779,1832.1,1831.3,5.46037]
[1743754826001,6.23634,1832.1,1831.3,5.46037]
[1743754826195,5.45945,1831.7,1831.3,10.92083]
[1743754826446,5.45905,1831.9,1831.4,6.552313]
[1743754826619,5.4592,1831.8,1831.5,5.45989]
[1743754826817,10.91852,1831.8,1831.6,6.763]
[1743754827023,5.4594,1831.7,1831.6,6.763]
[1743754827548,5.4594,1831.7,1831.3,5.46039]
[1743754827756,5.4594,1831.7,1831.6,6.752]
[1743754828053,5.45898,1831.9,1831.6,6.752]
[1743754828258,10.91802,1831.9,1831.6,6.752]
[1743754828550,5.4594,1831.7,1831.6,6.752]
[1743754828712,5.4594,1831.7,1831.6,10.752]
[1743754829147,0.205,1832.0,1831.6,10.739]
[1743754829344,0.205,1832.0,1831.9,5.45881]
[1743754830413,0.205,1832.0,1831.9,9.45881]
[1743754831723,0.205,1832.0,1831.9,10.21481]
[1743754833611,0.205,1832.0,1831.9,10.76481]
[1743754833942,0.1,1832.9,1832.7,5.45636]
[1743754834142,0.1,1832.9,1832.8,6.698]
[1743754835044,0.1,1832.9,1832.8,10.698]
[1743754835343,0.1,1832.9,1832.8,11.4233235]
[1743754835547,6.31672473,1833.9,1833.5,5.45392]
[1743754835733,0.03172473,1833.9,1833.8,6.24045]
[1743754836042,0.03172473,1833.9,1833.6,39.277]
[1743754836354,5.4534,1833.8,1833.7,4.0]
[1743754836535,0.8285,1833.7,1832.6,40.0706]
[1743754836735,0.8285,1833.7,1833.0,5.45545]
[1743754836736,5.45429,1833.5,1833.0,5.45545]
[1743754836933,5.45454,1833.4,1832.9,5.45582]
[1743754837131,0.545454,1833.4,1832.8,5.45601]
[1743754837341,5.45464,1833.3,1832.6,40.0706]
[1743754837525,5.45613,1832.8,1832.7,6.801]
[1743754837731,5.45613,1832.8,1832.6,39.277]
[1743754838051,5.45613,1832.8,1832.7,6.802]
[1743754838345,5.45599,1832.9,1832.7,6.802]
[1743754838515,5.45613,1832.8,1832.7,6.802]
[1743754838710,5.45613,1832.8,1832.6,39.277]
[1743754838918,5.45613,1832.8,1832.7,6.787]
[1743754839358,5.45589,1832.9,1832.7,6.787]
[1743754839720,5.45556,1833.0,1832.7,6.787]
[1743754840430,0.545454,1833.4,1832.7,6.787]
[1743754840631,0.7797,1833.5,1832.8,6.22012]
[1743754840838,5.45476,1833.3,1832.9,5.45563]
[1743754841155,6.23377,1833.5,1833.0,5.45548]
[1743754841357,7.64256974,1833.8,1832.8,6.21986]
[1743754841558,6.13851697,1833.7,1832.8,0.764]
[1743754841758,5.45538,1833.1,1832.8,0.764]
[1743754841939,5.45497,1833.2,1832.8,6.22002]
[1743754842334,5.45587,1832.9,1832.6,39.277]
[1743754842656,10.91137,1833.0,1832.7,6.754]
[1743754842860,10.91137,1833.0,1832.6,44.73358]
[1743754843023,5.45531,1833.1,1832.8,6.753]
[1743754843360,5.45563,1833.0,1832.8,6.753]
[1743754843750,5.45556,1833.0,1832.8,6.753]
[1743754844140,5.45583,1832.9,1832.8,6.753]
[1743754844341,5.45556,1833.0,1832.8,6.753]
[1743754844529,5.45524,1833.1,1832.8,6.753]
[1743754844731,5.45527,1833.1,1832.8,12.20899]
[1743754844929,5.45527,1833.1,1832.8,6.753]
[1743754845126,5.45497,1833.2,1832.8,12.20895]
[1743754845326,5.45523,1833.1,1832.8,12.20895]
[1743754845642,5.45497,1833.2,1832.9,5.45582]
[1743754845848,5.45497,1833.2,1832.8,13.975484]
[1743754846050,5.45535,1833.1,1832.8,6.753]
[1743754846361,5.45583,1832.9,1832.8,6.735]
[1743754847344,5.45583,1832.9,1832.6,39.277]
[1743754847547,5.45616,1832.8,1832.7,6.718]
[1743754847947,5.45583,1832.9,1832.7,6.718]
[1743754848258,0.8144,1833.2,1832.7,12.93846]
[1743754848259,5.45496,1833.2,1832.7,12.93846]
[1743754848437,0.8321,1833.4,1832.7,7.4822]
[1743754848637,5.45453,1833.4,1833.0,5.45541]
[1743754848837,5.45466,1833.3,1833.0,5.45541]
[1743754849047,5.45466,1833.3,1833.0,5.45551]
[1743754849244,5.45408,1833.5,1833.1,5.45523]
[1743754849443,5.4546,1833.4,1833.2,6.699]
[1743754849647,5.4546,1833.4,1833.3,6.699]
[1743754849851,5.4546,1833.4,1833.3,6.7]
[1743754852443,5.45643,1832.7,1832.6,45.946]
[1743754852972,5.45613,1832.8,1832.6,39.277]
[1743754853145,5.45613,1832.8,1832.7,6.665]